bitfinex-derivatives/quotes_BTCF0:USTF0_20250101
["timestamp","ask_amount","ask_price","bid_price","bid_amount"]
[1735720356478,0.0961,93568.0,93564.0,0.3608]
[1735720356872,0.0458,93568.0,93565.0,0.053536]
[1735720357478,0.0468,93568.0,93565.0,0.053536]
[1735720358268,0.0468,93568.0,93566.0,0.053536]
[1735720358573,0.001,93568.0,93566.0,0.053536]
[1735720359881,0.053535,93567.0,93565.0,0.001]
[1735720360480,0.001,93568.0,93566.0,0.001]
[1735720360669,0.054535,93568.0,93566.0,0.001]
[1735720361076,0.054535,93568.0,93565.0,0.001]
[1735720361274,0.001,93568.0,93565.0,0.001]
[1735720361476,0.053536,93566.0,93565.0,0.001]
[1735720361784,0.07134253,93566.0,93565.0,0.001]
[1735720362474,0.16995845,93566.0,93565.0,0.001]
[1735720362779,0.17095845,93566.0,93564.0,0.3608]
[1735720363081,0.51780653,93565.0,93564.0,0.3608]
[1735720363471,0.01780653,93565.0,93564.0,0.3608]
[1735720363779,0.11642245,93565.0,93564.0,0.3608]
[1735720364685,0.11642245,93565.0,93564.0,0.3618]
[1735720365378,0.11742245,93565.0,93564.0,0.3618]
[1735720366986,0.11742245,93565.0,93564.0,0.001]
[1735720368784,0.09961592,93565.0,93564.0,0.001]
[1735720368988,0.001,93565.0,93564.0,0.001]
[1735720371392,0.11497172,93565.0,93564.0,0.001]
[1735720374887,0.13269469,93565.0,93564.0,0.001]
[1735720376389,0.18623169,93565.0,93564.0,0.001]
[1735720376587,0.28485959,93565.0,93564.0,0.001]
[1735720377393,0.26713662,93565.0,93564.0,0.001]
[1735720378795,0.16850872,93565.0,93564.0,0.001]
[1735720380492,0.16850872,93565.0,93553.0,0.05568082]
[1735720380493,0.13270739,93565.0,93553.0,0.00213782]
[1735720380711,0.053543,93554.0,93553.0,0.00213782]
[1735720381196,0.053549,93543.0,93542.0,0.05355]
[1735720381583,0.17221579,93543.0,93542.0,0.05355]
[1735720381788,0.68995146,93543.0,93542.0,0.05355]
[1735720382491,0.68995146,93543.0,93542.0,0.001]
[1735720383998,0.67221579,93543.0,93542.0,0.001]
[1735720385583,0.1828798,93543.0,93542.0,0.001]
[1735720386886,0.053554,93535.0,93534.0,0.00160347]
[1735720387285,0.17364989,93535.0,93534.0,0.00160347]
[1735720388089,0.92009589,93535.0,93520.0,0.3608]
[1735720388392,0.048566,93513.0,93507.0,0.31023888]
[1735720388786,0.048566,93513.0,93509.0,0.053568]
[1735720389291,0.053562,93522.0,93501.0,0.3608]
[1735720389492,0.5,93524.0,93521.0,0.3608]
[1735720389698,0.053551,93540.0,93533.0,0.053555]
[1735720389896,0.3608,93547.0,93534.0,0.0992]
[1735720390089,0.053552,93539.0,93534.0,0.0992]
[1735720390990,0.053552,93539.0,93534.0,0.152754]
[1735720391597,0.053552,93538.0,93534.0,0.152754]
[1735720391797,0.053553,93537.0,93534.0,0.152754]
[1735720392001,0.053553,93536.0,93534.0,0.152754]
[1735720392192,0.053553,93536.0,93534.0,0.0493]
[1735720392193,0.16487008,93536.0,93534.0,0.0493]
[1735720392395,0.5,93535.0,93534.0,0.0493]
[1735720392595,0.553553,93536.0,93534.0,0.0493]
[1735720392790,0.11131708,93535.0,93534.0,0.0493]
[1735720392994,0.053553,93536.0,93534.0,0.0493]
[1735720393197,0.058553,93536.0,93534.0,0.0493]
[1735720394300,0.053557,93529.0,93528.0,0.3608]
[1735720394500,0.007,93536.0,93525.0,0.053559]
[1735720394893,0.053558,93529.0,93525.0,0.053559]
[1735720395795,0.054558,93529.0,93525.0,0.053559]
[1735720396905,0.054558,93529.0,93522.0,0.0536]
[1735720397405,0.054558,93529.0,93522.0,0.107161]
[1735720397800,0.054558,93529.0,93524.0,0.05356]
[1735720398000,0.001,93529.0,93522.0,0.0536]
[1735720398195,0.01099621,93539.0,93528.0,0.3608]
[1735720398391,0.01099621,93539.0,93538.0,0.414352]
[1735720398597,0.053546,93550.0,93538.0,0.3608]
[1735720398804,0.053546,93550.0,93542.0,0.05355]
[1735720399599,0.053548,93546.0,93542.0,0.05355]
[1735720400601,0.053551,93542.0,93540.0,0.11014199]
[1735720400906,0.053551,93542.0,93539.0,0.1052]
[1735720401306,0.053551,93542.0,93538.0,0.3608]
[1735720402212,0.053552,93540.0,93538.0,0.3608]
[1735720402399,0.053552,93540.0,93533.0,0.0526]
[1735720402595,0.053557,93530.0,93520.0,0.3608]
[1735720403006,0.053557,93530.0,93520.0,0.47094199]
[1735720404214,0.39548973,93533.0,93520.0,0.47094199]
[1735720404605,0.053558,93529.0,93520.0,0.52450499]
[1735720405206,0.553558,93529.0,93520.0,0.52450499]
[1735720405714,0.57140355,93529.0,93520.0,0.52450499]
[1735720405909,0.57140355,93529.0,93521.0,0.053562]
[1735720406113,0.553558,93529.0,93525.0,0.05356]
[1735720406314,0.553558,93529.0,93520.0,0.47094199]
[1735720406315,0.555558,93529.0,93526.0,0.053559]
[1735720406707,0.556558,93529.0,93526.0,0.053559]
[1735720409122,0.503,93529.0,93525.0,0.3608]
[1735720409415,0.053559,93528.0,93525.0,0.3608]
[1735720410517,0.053559,93527.0,93525.0,0.3608]
[1735720412217,0.5,93531.0,93528.0,0.053558]
[1735720412417,0.553553,93538.0,93525.0,0.3608]
[1735720412617,0.053553,93537.0,93531.0,0.053557]
[1735720412814,0.0524,93539.0,93531.0,0.053557]
[1735720413020,0.053554,93536.0,93531.0,0.053557]
[1735720413523,0.053554,93536.0,93534.0,0.053555]
[1735720413821,0.053554,93536.0,93534.0,0.414355]
[1735720414427,0.07133138,93536.0,93534.0,0.414355]
[1735720414724,0.07533138,93536.0,93534.0,0.414355]
[1735720414908,0.01777738,93535.0,93534.0,0.414355]
[1735720416314,0.01977738,93535.0,93534.0,0.414355]
[1735720417117,0.07733138,93535.0,93534.0,0.3608]
[1735720420028,0.02385932,93535.0,93534.0,0.414355]
[1735720420217,0.006,93535.0,93534.0,0.414355]
[1735720421629,0.002,93535.0,93534.0,0.414355]
[1735720421826,0.006,93535.0,93534.0,0.414355]
[1735720425727,0.006,93535.0,93534.0,0.053555]
[1735720428921,0.1180342,93535.0,93520.0,0.3608]
[1735720429124,0.053559,93528.0,93522.0,0.053561]
[1735720430124,0.053559,93528.0,93523.0,0.05516489]
[1735720430325,0.053559,93528.0,93523.0,0.05616489]
[1735720431022,0.053559,93528.0,93524.0,0.053561]
[1735720432417,0.053559,93528.0,93525.0,0.05356]
[1735720432619,0.0178663,93533.0,93523.0,0.00260389]
[1735720432620,0.0714223,93533.0,93528.0,0.053558]
[1735720432820,0.0178663,93533.0,93529.0,0.3608]
[1735720433024,0.053557,93531.0,93529.0,0.3608]
[1735720434226,0.055557,93531.0,93529.0,0.3608]
[1735720435022,0.003,93531.0,93530.0,0.053557]
[1735720436128,0.001,93531.0,93530.0,0.053557]
[1735720436329,0.004,93531.0,93530.0,0.053557]
[1735720441534,0.004,93531.0,93530.0,0.414357]
[1735720444627,0.003,93531.0,93530.0,0.414357]
[1735720444929,0.004,93531.0,93530.0,0.414357]
[1735720445129,0.057557,93531.0,93530.0,0.3608]
[1735720446337,0.056557,93531.0,93530.0,0.3608]
[1735720447523,0.055557,93531.0,93530.0,0.3608]
[1735720447728,0.056557,93531.0,93530.0,0.3608]
[1735720448936,0.057557,93531.0,93530.0,0.3608]
[1735720451235,0.0754031,93531.0,93530.0,0.3608]
[1735720451631,0.053558,93530.0,93524.0,0.05356]
[1735720451837,0.0178461,93530.0,93524.0,0.05356]
[1735720452032,0.0498,93529.0,93524.0,0.05356]
[1735720452239,0.053559,93527.0,93524.0,0.05356]
[1735720457445,0.06432379,93527.0,93524.0,0.05356]
[1735720459338,0.06432379,93527.0,93526.0,0.3608]
[1735720460541,0.06532379,93527.0,93526.0,0.3608]
[1735720466350,0.08327486,93527.0,93526.0,0.3608]
[1735720468051,0.08327486,93527.0,93524.0,0.05356]
[1735720468259,0.18692495,93527.0,93526.0,0.3608]
[1735720468554,0.20489809,93527.0,93526.0,0.3608]
[1735720469853,0.30355458,93527.0,93526.0,0.3608]
[1735720473953,0.18195342,93527.0,93526.0,0.3608]
[1735720474158,0.08329693,93527.0,93526.0,0.3608]
[1735720474354,0.06532379,93527.0,93526.0,0.3608]
[1735720476249,0.08322233,93527.0,93526.0,0.3608]
[1735720476450,0.06532379,93527.0,93526.0,0.3608]
[1735720477251,0.05356,93526.0,93522.0,0.053562]
[1735720477457,0.5,93524.0,93522.0,0.053562]
[1735720477759,0.05356,93526.0,93522.0,0.053562]
[1735720478558,0.05356,93526.0,93522.0,0.054562]
[1735720478764,0.5,93524.0,93522.0,0.054562]
[1735720478958,0.5,93524.0,93522.0,0.055562]
[1735720479751,0.5,93525.0,93522.0,0.055562]
[1735720480260,0.05356,93526.0,93522.0,0.055562]
[1735720480451,0.05356,93526.0,93522.0,0.054562]
[1735720480759,0.05356,93526.0,93522.0,0.055562]
[1735720481350,0.07132644,93526.0,93522.0,0.055562]
[1735720481555,0.01776644,93526.0,93525.0,0.05356]
[1735720481754,0.01776688,93526.0,93525.0,0.05356]
[1735720481959,0.07132088,93536.0,93533.0,0.053555]
[1735720484953,0.07532088,93536.0,93533.0,0.053555]
[1735720485154,0.01776688,93535.0,93529.0,0.3608]
[1735720485351,0.01776688,93535.0,93534.0,0.053555]
[1735720486463,0.02176688,93535.0,93534.0,0.053555]
[1735720486663,0.004,93535.0,93534.0,0.053555]
[1735720487461,0.005,93535.0,93534.0,0.053555]
[1735720488258,0.006,93535.0,93534.0,0.053555]
[1735720489052,0.1046478,93535.0,93534.0,0.053555]
[1735720489259,0.12241468,93535.0,93534.0,0.053555]
[1735720489462,0.12228631,93535.0,93534.0,0.053555]
[1735720489761,0.1046478,93535.0,93534.0,0.053555]
[1735720495266,0.1582018,93535.0,93534.0,0.053555]
[1735720495669,0.059554,93535.0,93534.0,0.053555]
[1735720501566,0.053556,93532.0,93529.0,0.414357]
[1735720501973,0.053556,93532.0,93530.0,0.053557]
[1735720503373,0.054556,93532.0,93530.0,0.053557]
[1735720503967,0.057556,93532.0,93530.0,0.053557]
[1735720505368,0.057556,93532.0,93529.0,0.3608]
[1735720505571,0.004,93532.0,93531.0,0.053557]
[1735720506471,0.003,93532.0,93531.0,0.053557]
[1735720507071,0.004,93532.0,93531.0,0.053557]
[1735720507268,0.003,93532.0,93531.0,0.053557]
[1735720507576,0.004,93532.0,93531.0,0.053557]
[1735720513084,0.004,93532.0,93531.0,0.06435736]
[1735720516789,0.004,93532.0,93531.0,0.053557]
[1735720518383,0.004,93532.0,93529.0,0.3608]
[1735720518384,0.053557,93530.0,93529.0,0.3608]
[1735720518776,0.07111877,93530.0,93529.0,0.3608]
[1735720519584,0.07211877,93530.0,93529.0,0.3608]
[1735720519787,0.07411877,93530.0,93529.0,0.3608]
[1735720520688,0.02056177,93530.0,93529.0,0.3608]
[1735720520887,0.003,93530.0,93529.0,0.414358]
[1735720524786,0.002,93530.0,93529.0,0.414358]
[1735720524993,0.0487,93542.0,93541.0,0.053551]
[1735720525196,0.0487,93542.0,93541.0,0.414351]
[1735720525487,0.20920079,93553.0,93541.0,0.3608]
[1735720525683,0.0174896,93552.0,93548.0,0.053547]
[1735720526090,0.0174896,93552.0,93549.0,0.053546]
[1735720526483,0.0174896,93552.0,93550.0,0.053546]
[1735720526689,0.7108008,93553.0,93550.0,0.053546]
[1735720526886,0.70920079,93553.0,93550.0,0.053546]
[1735720527097,0.70920079,93553.0,93551.0,0.053545]
[1735720527490,0.004,93552.0,93551.0,0.053545]
[1735720527994,0.10263169,93552.0,93551.0,0.053545]
[1735720528190,0.10763169,93552.0,93551.0,0.053545]
[1735720528896,0.004,93552.0,93551.0,0.053545]
[1735720529192,0.005,93552.0,93551.0,0.053545]
[1735720529386,0.053521,93593.0,93550.0,0.001]
[1735720529387,0.0534,93579.0,93550.0,0.001]
[1735720529582,0.0534,93579.0,93578.0,0.3608]
[1735720530095,0.17493529,93579.0,93578.0,0.3608]
[1735720530290,0.0534,93579.0,93578.0,0.3608]
[1735720530998,0.1006,93584.0,93578.0,0.3608]
[1735720531201,0.1006,93584.0,93582.0,0.053527]
[1735720532492,0.1016,93584.0,93582.0,0.053527]
[1735720532688,0.001,93584.0,93582.0,0.053527]
[1735720533182,0.001,93584.0,93582.0,0.054527]
[1735720533385,0.001,93584.0,93582.0,0.053527]
[1735720533688,0.001,93584.0,93582.0,0.054527]
[1735720534395,0.1082,93594.0,93582.0,0.001]
[1735720534593,0.1082,93594.0,93584.0,0.10990559]
[1735720534792,0.1082,93594.0,93591.0,0.053522]
[1735720535599,0.1082,93594.0,93592.0,0.053522]
[1735720537190,0.1082,93594.0,93592.0,0.054522]
[1735720537794,0.1092,93594.0,93592.0,0.054522]
[1735720538399,0.1082,93594.0,93592.0,0.054522]
[1735720538599,0.1092,93594.0,93592.0,0.054522]
[1735720553504,0.0558,93594.0,93592.0,0.054522]
[1735720554709,0.109321,93594.0,93592.0,0.054522]
[1735720556809,0.0529,93595.0,93592.0,0.054522]
[1735720556810,0.00201461,93595.0,93592.0,0.001]
[1735720557114,0.054521,93594.0,93593.0,0.05352]
[1735720557811,0.053521,93594.0,93593.0,0.05352]
[1735720559410,0.053521,93594.0,93593.0,0.05452]
[1735720559816,0.47976,93598.0,93593.0,0.001]
[1735720560016,0.47976,93598.0,93597.0,0.053519]
[1735720561412,0.84056,93598.0,93597.0,0.053519]
[1735720561617,0.053521,93594.0,93559.0,0.36240325]
[1735720561913,0.053532,93575.0,93574.0,0.053532]
[1735720562117,0.053529,93580.0,93565.0,0.07211088]
[1735720562317,0.053529,93580.0,93575.0,0.053531]
[1735720562318,0.05353,93577.0,93575.0,0.053531]
[1735720562710,0.05353,93577.0,93576.0,0.3608]
[1735720562914,0.053527,93583.0,93582.0,0.053527]
[1735720564016,0.5,93588.0,93586.0,0.053525]
[1735720564210,0.5,93588.0,93586.0,0.414325]
[1735720564522,0.11520203,93587.0,93586.0,0.414325]
[1735720566317,0.11620203,93587.0,93586.0,0.415325]
[1735720571225,0.001,93587.0,93586.0,0.415325]
[1735720582231,0.053524,93588.0,93586.0,0.414325]
[1735720582428,0.001,93587.0,93586.0,0.415325]
[1735720582829,0.053524,93588.0,93587.0,0.053525]
[1735720585337,0.054524,93588.0,93587.0,0.054525]
[1735720585832,0.053524,93588.0,93587.0,0.054525]
[1735720586036,0.054524,93588.0,93587.0,0.054525]
[1735720586334,0.054524,93588.0,93587.0,0.053525]
[1735720586538,0.054524,93588.0,93587.0,0.054525]
[1735720592027,0.053524,93588.0,93587.0,0.054525]
[1735720592235,0.054524,93588.0,93587.0,0.054525]
[1735720592943,0.17766815,93588.0,93587.0,0.001]
[1735720593137,0.19529719,93588.0,93587.0,0.001]
[1735720593335,0.69529719,93588.0,93587.0,0.001]
[1735720593734,0.19529719,93588.0,93587.0,0.001]
[1735720594333,0.69529719,93588.0,93587.0,0.001]
[1735720594733,0.19529719,93588.0,93587.0,0.001]
[1735720595241,0.69529719,93588.0,93587.0,0.001]
[1735720595543,0.55609719,93588.0,93587.0,0.001]
[1735720596341,0.55609719,93588.0,93585.0,0.02227036]
[1735720596342,0.053525,93586.0,93585.0,0.02227036]
[1735720596739,0.053525,93586.0,93579.0,0.053529]
[1735720596740,0.11460074,93586.0,93579.0,0.053529]
[1735720597042,0.053535,93570.0,93568.0,0.414335]
[1735720597237,0.053535,93570.0,93568.0,0.3608]
[1735720597445,0.11460074,93569.0,93568.0,0.3608]
[1735720597636,0.13222978,93569.0,93567.0,0.00160298]
[1735720597842,0.07116404,93568.0,93567.0,0.00160298]
[1735720598238,0.19337991,93568.0,93567.0,0.00160298]
[1735720599846,0.19637991,93568.0,93567.0,0.00160298]
[1735720601645,0.20696888,93568.0,93567.0,0.00160298]
[1735720601932,0.18933984,93568.0,93567.0,0.00160298]
[1735720602537,0.28795939,93568.0,93567.0,0.00160298]
[1735720603437,0.18933984,93568.0,93567.0,0.00160298]
[1735720605438,0.28795738,93568.0,93567.0,0.00160298]
[1735720605637,0.16574151,93568.0,93567.0,0.00160298]
[1735720608942,0.18302518,93568.0,93567.0,0.00160298]
[1735720609649,0.08440764,93568.0,93567.0,0.00160298]
[1735720614743,0.07381867,93568.0,93567.0,0.00160298]
[1735720616043,0.056535,93568.0,93567.0,0.00160298]
[1735720628162,0.056535,93568.0,93567.0,0.04950298]
[1735720628661,0.003,93568.0,93567.0,0.04950298]
[1735720629161,0.003,93568.0,93567.0,0.14570298]
[1735720631659,0.01699033,93579.0,93567.0,0.14570298]
[1735720631854,0.01699033,93579.0,93576.0,0.3608]
[1735720632164,0.01699033,93582.0,93581.0,0.053528]
[1735720633056,0.11558939,93582.0,93581.0,0.053528]
[1735720634363,0.11558939,93582.0,93581.0,0.054528]
[1735720637866,0.01699033,93582.0,93581.0,0.054528]
[1735720639467,0.53480701,93583.0,93581.0,0.054528]
[1735720639667,0.533207,93583.0,93581.0,0.054528]
[1735720641260,0.47968,93583.0,93576.0,0.3608]
[1735720641462,0.053527,93582.0,93581.0,0.001]
[1735720641769,0.07047371,93582.0,93581.0,0.001]
[1735720642066,0.43127371,93582.0,93581.0,0.001]
[1735720643471,0.414327,93582.0,93581.0,0.001]
[1735720644076,0.3608,93582.0,93577.0,0.05353]
[1735720644277,0.053529,93579.0,93577.0,0.05353]
[1735720645481,0.053529,93579.0,93577.0,0.05453]
[1735720652480,0.053529,93579.0,93577.0,0.001]
[1735720652787,0.553529,93579.0,93577.0,0.001]
[1735720653496,0.12360882,93578.0,93577.0,0.001]
[1735720654881,0.23925827,93578.0,93568.0,0.07216057]
[1735720655086,0.27574921,93578.0,93577.0,0.001]
[1735720655295,0.15214039,93578.0,93577.0,0.001]
[1735720655479,0.26897473,93578.0,93577.0,0.001]
[1735720656494,0.28687962,93578.0,93577.0,0.001]
[1735720656989,0.23334962,93578.0,93569.0,0.053535]
[1735720657186,0.053534,93571.0,93569.0,0.053535]
[1735720657379,0.553534,93571.0,93569.0,0.053535]
[1735720658392,0.09861039,93570.0,93569.0,0.053535]
[1735720661189,0.555054,93571.0,93569.0,0.053535]
[1735720661391,0.01777245,93570.0,93569.0,0.053535]
[1735720662485,0.07130645,93570.0,93569.0,0.053535]
[1735720665292,0.053534,93570.0,93569.0,0.053535]
[1735720674294,0.5,93574.0,93567.0,0.3608]
[1735720674495,0.01089852,93577.0,93567.0,0.3608]
[1735720674496,0.053535,93568.0,93567.0,0.3608]
[1735720678610,0.06413407,93568.0,93567.0,0.3608]
[1735720678902,0.08199442,93568.0,93567.0,0.3608]
[1735720680998,0.1967956,93568.0,93567.0,0.3608]
[1735720681397,0.1967956,93568.0,93557.0,0.053542]
[1735720681398,0.5040606,93568.0,93557.0,0.053542]
[1735720681598,0.053541,93560.0,93558.0,0.12570157]
[1735720681797,0.053541,93560.0,93558.0,0.053541]
[1735720683810,0.053541,93560.0,93558.0,0.054541]
[1735720684502,0.053541,93560.0,93558.0,0.055541]
[1735720685598,0.053541,93560.0,93558.0,0.002]
[1735720686411,0.5,93559.0,93558.0,0.002]
[1735720686603,0.053541,93560.0,93558.0,0.002]
[1735720688308,0.053541,93560.0,93558.0,0.001]
[1735720688494,0.053541,93560.0,93558.0,0.002]
[1735720691809,0.09862363,93559.0,93558.0,0.002]
[1735720692006,0.22079061,93559.0,93558.0,0.002]
[1735720692214,0.27149061,93559.0,93558.0,0.002]
[1735720692403,0.78957669,93559.0,93558.0,0.002]
[1735720692808,0.65040251,93559.0,93540.0,0.07216057]
[1735720693103,0.3598,93549.0,93540.0,0.07216057]
[1735720693297,0.4607,93548.0,93540.0,0.07216057]
[1735720693498,0.053551,93541.0,93539.0,0.053552]
[1735720693716,0.3608,93540.0,93539.0,0.053552]
[1735720693907,0.47111041,93540.0,93539.0,0.053552]
[1735720694510,0.46311041,93540.0,93539.0,0.053552]
[1735720694812,0.3428,93540.0,93539.0,0.057552]
[1735720696106,0.3438,93540.0,93539.0,0.063552]
[1735720696307,0.3438,93540.0,93539.0,0.062552]
[1735720702712,0.001,93540.0,93539.0,0.062552]
[1735720719512,0.054551,93540.0,93539.0,0.009]
[1735720719722,0.17377707,93540.0,93539.0,0.009]
[1735720720020,0.67377707,93540.0,93539.0,0.009]
[1735720720227,1.03457707,93540.0,93539.0,0.009]
[1735720720432,0.55263112,93540.0,93539.0,0.009]
[1735720720726,1.03357707,93540.0,93539.0,0.005]
[1735720721318,1.03357707,93540.0,93539.0,0.004]
[1735720721625,1.05160912,93540.0,93539.0,0.004]
[1735720721815,1.05160912,93540.0,93539.0,0.002]
[1735720722719,1.15025987,93540.0,93539.0,0.002]
[1735720723627,1.05160912,93540.0,93539.0,0.002]
[1735720725125,1.03357707,93540.0,93539.0,0.002]
[1735720725928,1.05171172,93540.0,93539.0,0.002]
[1735720727730,1.05171172,93540.0,93523.0,0.053561]
[1735720728033,0.05356,93526.0,93523.0,0.053561]
[1735720728731,0.05356,93526.0,93523.0,0.057561]
[1735720729229,0.3608,93528.0,93523.0,0.004]
[1735720729424,0.3608,93528.0,93526.0,0.053559]
[1735720730038,0.414359,93528.0,93526.0,0.053559]
[1735720730634,0.415359,93528.0,93526.0,0.059559]
[1735720732534,0.415359,93528.0,93526.0,0.062559]
[1735720733739,0.42623068,93528.0,93526.0,0.062559]
[1735720734748,0.42623068,93528.0,93526.0,0.009]
[1735720736042,0.25479192,93528.0,93526.0,0.009]
[1735720739348,0.06543068,93528.0,93526.0,0.009]
[1735720740445,0.56543068,93528.0,93526.0,0.009]
[1735720740646,0.06543068,93528.0,93526.0,0.009]
[1735720741038,0.01821587,93527.0,93526.0,0.009]
[1735720742150,0.01821587,93527.0,93526.0,0.003]
[1735720742344,0.01921587,93527.0,93526.0,0.009]
[1735720742948,0.01921587,93527.0,93526.0,0.007]
[1735720743334,0.02021587,93527.0,93526.0,0.001]
[1735720744234,0.002,93527.0,93526.0,0.001]
[1735720745039,0.053559,93526.0,93522.0,0.053561]
[1735720745233,0.05356,93525.0,93522.0,0.053561]
[1735720745848,0.053561,93523.0,93522.0,0.053561]
[1735720747643,0.053561,93523.0,93522.0,0.054561]
[1735720748753,0.01087168,93528.0,93527.0,0.053559]
[1735720749047,0.055078,93529.0,93527.0,0.053559]
[1735720749250,0.053558,93529.0,93527.0,0.053559]
[1735720749646,0.053558,93529.0,93528.0,0.053558]
[1735720750343,0.053561,93523.0,93522.0,0.001]
[1735720750744,0.51086215,93530.0,93521.0,0.24599283]
[1735720750942,0.053562,93522.0,93521.0,0.24599283]
[1735720751541,0.053562,93522.0,93521.0,0.053562]
[1735720751744,0.052562,93522.0,93521.0,0.053562]
[1735720752244,0.052562,93522.0,93520.0,0.00160371]
[1735720752452,0.053562,93521.0,93520.0,0.00160371]
[1735720752648,0.053562,93521.0,93520.0,0.19403454]
[1735720753049,0.052562,93521.0,93520.0,0.19403454]
[1735720753756,0.052562,93521.0,93520.0,0.00160371]
[1735720754546,0.052562,93521.0,93520.0,0.00360371]
[1735720757648,0.052562,93521.0,93520.0,0.002]
[1735720757845,0.552562,93521.0,93520.0,0.001]
[1735720758045,0.053567,93513.0,93512.0,0.19285121]
[1735720758251,0.51800252,93520.0,93511.0,0.19285121]
[1735720758553,0.053568,93512.0,93511.0,0.19285121]
[1735720759357,0.053568,93511.0,93510.0,0.07216057]
[1735720759557,0.05357,93508.0,93506.0,0.053571]
[1735720759761,0.504,93513.0,93506.0,0.053571]
[1735720759958,0.05357,93507.0,93506.0,0.053571]
[1735720764448,0.3608,93512.0,93501.0,0.033]
[1735720764848,0.053572,93505.0,93501.0,0.086574]
[1735720765351,0.053572,93505.0,93502.0,0.053573]
[1735720766858,0.053572,93505.0,93502.0,0.055573]
[1735720767759,0.053572,93505.0,93502.0,0.056573]
[1735720768842,0.053572,93505.0,93502.0,0.003]
[1735720769043,0.053572,93505.0,93503.0,0.053572]
[1735720769849,0.053572,93505.0,93502.0,0.003]
[1735720770044,0.053572,93505.0,93504.0,0.053572]
[1735720772362,0.51099228,93513.0,93503.0,0.002]
[1735720772550,0.51099228,93513.0,93505.0,0.053571]
[1735720772749,0.16906029,93512.0,93504.0,0.002]
[1735720772955,0.00152,93513.0,93512.0,0.053568]
[1735720773150,0.053565,93517.0,93512.0,0.053568]
[1735720773350,0.5,93520.0,93512.0,0.053568]
[1735720773551,0.053566,93516.0,93512.0,0.053568]
[1735720774060,0.51248264,93520.0,93515.0,0.053565]
[1735720774362,0.053564,93519.0,93515.0,0.053565]
[1735720774767,0.07127573,93519.0,93516.0,0.053565]
[1735720775767,0.07727573,93519.0,93516.0,0.053565]
[1735720775954,0.01771173,93518.0,93517.0,0.053565]
[1735720776154,0.054564,93519.0,93517.0,0.053565]
[1735720776155,0.07727573,93519.0,93517.0,0.053565]
[1735720776451,0.059564,93519.0,93517.0,0.053565]
[1735720777353,0.002,93518.0,93517.0,0.053565]
[1735720778157,0.055564,93519.0,93517.0,0.053565]
[1735720778462,0.006,93518.0,93517.0,0.054565]
[1735720778854,0.008,93518.0,93517.0,0.054565]
[1735720779464,0.002,93518.0,93517.0,0.054565]
[1735720780163,0.008,93518.0,93517.0,0.054565]
[1735720785359,0.008,93518.0,93517.0,0.001]
[1735720788961,0.061564,93518.0,93517.0,0.001]
[1735720792463,0.008,93518.0,93517.0,0.001]
[1735720792672,0.053554,93536.0,93517.0,0.3117173]
[1735720792870,0.053554,93536.0,93534.0,0.053555]
[1735720793068,0.053554,93536.0,93535.0,0.0311]
[1735720793573,0.3608,93540.0,93539.0,0.053552]
[1735720795471,0.009,93540.0,93539.0,0.054552]
[1735720795778,0.009,93540.0,93539.0,0.001]
[1735720796868,0.013,93540.0,93539.0,0.001]
[1735720797270,0.03052203,93540.0,93539.0,0.001]
[1735720799778,0.013,93540.0,93539.0,0.001]
[1735720803673,0.01752203,93559.0,93557.0,0.053542]
[1735720803867,0.01752203,93565.0,93560.0,0.05354]
[1735720804071,0.053537,93566.0,93560.0,0.05354]
[1735720804480,0.053537,93566.0,93561.0,0.053539]
[1735720804673,0.0641,93570.0,93561.0,0.053539]
[1735720804875,0.053537,93565.0,93561.0,0.053539]
[1735720805075,0.062537,93565.0,93561.0,0.053539]
[1735720805583,0.053537,93565.0,93561.0,0.053539]
[1735720805773,0.053537,93565.0,93561.0,0.054539]
[1735720806078,0.053537,93565.0,93562.0,0.053539]
[1735720806079,0.055537,93565.0,93562.0,0.053539]
[1735720806877,0.002,93565.0,93562.0,0.053539]
[1735720807082,0.053538,93564.0,93562.0,0.053539]
[1735720807268,0.053539,93562.0,93561.0,0.001]
[1735720807467,0.053539,93562.0,93556.0,0.07216057]
[1735720807780,0.053539,93562.0,93561.0,0.001]
[1735720807980,0.053539,93562.0,93558.0,0.053541]
[1735720807981,0.053539,93562.0,93559.0,0.05354]
[1735720808782,0.054539,93562.0,93560.0,0.05354]
[1735720809167,0.056539,93562.0,93560.0,0.05354]
[1735720809376,0.055539,93562.0,93560.0,0.05354]
[1735720811076,0.057539,93562.0,93560.0,0.05454]
[1735720812178,0.017617,93561.0,93560.0,0.05454]
[1735720814086,0.019617,93561.0,93560.0,0.05454]
[1735720814689,0.004,93561.0,93560.0,0.05454]
[1735720814884,0.021617,93561.0,93560.0,0.05454]
[1735720818386,0.004,93561.0,93560.0,0.05454]
[1735720820393,0.3608,93573.0,93572.0,0.053533]
[1735720821078,0.5,93581.0,93580.0,0.053529]
[1735720821987,0.51070231,93581.0,93580.0,0.053529]
[1735720822389,0.51070231,93581.0,93580.0,0.054529]
[1735720822390,0.31466751,93581.0,93580.0,0.054529]
[1735720822695,0.3039652,93581.0,93580.0,0.054529]
[1735720822895,0.002,93581.0,93580.0,0.054529]
[1735720823294,0.002,93581.0,93580.0,0.055529]
[1735720823892,0.01051009,93585.0,93580.0,0.001]
[1735720824091,0.555043,93589.0,93580.0,0.001]
[1735720824294,0.553523,93589.0,93588.0,0.053524]
[1735720824486,0.5,93589.0,93588.0,0.053524]
[1735720824684,0.05352,93595.0,93590.0,0.053523]
[1735720824889,0.37167772,93591.0,93590.0,0.053523]